bitfinex-derivatives/quotes_BTCF0:USTF0_20210404
["timestamp","ask_amount","ask_price","bid_price","bid_amount"]
[1617534737114,0.10936766,57569.0,57568.0,2.01555169]
[1617534737513,0.10936766,57569.0,57568.0,2.38114188]
[1617534738717,0.11238538,57569.0,57568.0,1.87338041]
[1617534738917,0.11238538,57569.0,57568.0,0.87338041]
[1617534739118,0.11741085,57569.0,57568.0,0.87338041]
[1617534739317,3.40831085,57569.0,57568.0,0.87338041]
[1617534739719,3.70001901,57569.0,57568.0,0.87338041]
[1617534740118,3.70001901,57569.0,57568.0,0.81228086]
[1617534740517,3.70001901,57569.0,57568.0,0.87338336]
[1617534741018,3.70001901,57569.0,57568.0,0.81228086]
[1617534741319,3.70001901,57569.0,57568.0,0.87338322]
[1617534741720,3.70001901,57569.0,57568.0,0.81228086]
[1617534742823,0.40911901,57569.0,57568.0,0.81228086]
[1617534744124,0.10725655,57569.0,57568.0,0.96502956]
[1617534744426,0.1123876,57569.0,57568.0,0.96502956]
[1617534745827,0.40984016,57569.0,57568.0,1.4738414]
[1617534747427,0.40984016,57569.0,57568.0,2.4738414]
[1617534747828,0.40984016,57569.0,57568.0,2.61640249]
[1617534748427,0.40984016,57569.0,57568.0,2.38219218]
[1617534748828,4.15064016,57569.0,57568.0,2.38219218]
[1617534750831,4.28682016,57569.0,57568.0,1.38219218]
[1617534751230,4.64970069,57569.0,57568.0,1.38219218]
[1617534751429,0.90890069,57569.0,57568.0,1.38219218]
[1617534751632,0.90890069,57569.0,57568.0,1.3210927]
[1617534752329,0.79041968,57569.0,57568.0,2.3210927]
[1617534752729,0.65423968,57569.0,57568.0,2.3210927]
[1617534752932,0.40984016,57569.0,57568.0,2.3210927]
[1617534753232,0.40984016,57569.0,57568.0,2.38219127]
[1617534754034,0.40984016,57569.0,57568.0,1.38219127]
[1617534754534,0.40984016,57569.0,57568.0,1.3210927]
[1617534754733,0.40984016,57569.0,57568.0,2.3210927]
[1617534754935,0.40984016,57569.0,57568.0,1.3210927]
[1617534755134,0.40984016,57569.0,57568.0,1.38219242]
[1617534755435,0.40984016,57569.0,57568.0,1.3210927]
[1617534755636,0.40984016,57569.0,57568.0,2.3210927]
[1617534755835,0.40984016,57569.0,57568.0,2.3821918]
[1617534763643,0.40984016,57569.0,57568.0,2.4348918]
[1617534764045,0.40984016,57569.0,57568.0,2.3821918]
[1617534768045,0.40984016,57569.0,57568.0,1.3821918]
[1617534768645,0.40984016,57569.0,57568.0,1.3210927]
[1617534768646,0.77291035,57569.0,57568.0,1.3210927]
[1617534769045,0.77291035,57569.0,57568.0,2.3210927]
[1617534769646,1.01730676,57569.0,57568.0,2.3821918]
[1617534770045,0.40984016,57569.0,57568.0,2.3821918]
[1617534770345,0.65423549,57569.0,57568.0,2.3821918]
[1617534770745,0.40984016,57569.0,57568.0,2.3821918]
[1617534770948,0.40984016,57569.0,57568.0,1.3821918]
[1617534771546,0.40984016,57569.0,57568.0,1.3210927]
[1617534771946,0.40984016,57569.0,57568.0,1.38219126]
[1617534772351,0.40984016,57569.0,57568.0,1.3210927]
[1617534774250,0.77293238,57569.0,57568.0,1.3210927]
[1617534775050,1.01732797,57569.0,57568.0,1.3210927]
[1617534776651,3.99202797,57569.0,57568.0,1.3210927]
[1617534777252,4.8020591,57569.0,57568.0,0.81228086]
[1617534777752,4.8020591,57569.0,57568.0,0.87338687]
[1617534778154,4.8020591,57569.0,57568.0,0.81228086]
[1617534781054,4.8020591,57569.0,57568.0,0.36559019]
[1617534781055,4.43543455,57569.0,57568.0,0.36559019]
[1617534782556,1.46073455,57569.0,57568.0,0.36559019]
[1617534783961,4.44693455,57569.0,57568.0,0.36559019]
[1617534785462,1.46073455,57569.0,57568.0,0.36559019]
[1617534788962,0.10725655,57569.0,57555.0,1.0]
[1617534789163,3.7019,57558.0,57555.0,1.0]
[1617534789363,3.81627,57558.0,57555.0,1.0]
[1617534789563,3.8183752,57558.0,57555.0,1.0]
[1617534789964,3.8183752,57558.0,57557.0,1.32086943]
[1617534791167,3.81627,57558.0,57557.0,1.32086943]
[1617534792069,3.92352655,57558.0,57557.0,1.32086943]
[1617534793871,3.9256314,57558.0,57557.0,1.32086943]
[1617534794371,3.9256314,57558.0,57557.0,0.81284273]
[1617534794671,3.9256314,57558.0,57557.0,0.87395238]
[1617534795070,3.9256314,57558.0,57557.0,0.81284273]
[1617534795773,3.9256314,57558.0,57557.0,1.38176171]
[1617534796173,3.9256314,57558.0,57557.0,1.32065244]
[1617534796973,3.92352655,57558.0,57557.0,0.81284273]
[1617534798273,3.92562905,57558.0,57557.0,0.81284273]
[1617534801880,3.92352655,57558.0,57557.0,0.81284273]
[1617534802483,3.92562871,57558.0,57557.0,0.81284273]
[1617534804481,3.92562871,57558.0,57555.0,0.06110977]
[1617534804682,3.92562871,57558.0,57557.0,0.87330273]
[1617534804983,3.92562871,57558.0,57557.0,0.81219231]
[1617534809993,3.93363238,57558.0,57557.0,0.81219231]
[1617534810391,3.92352655,57558.0,57557.0,0.81219231]
[1617534810893,3.93363157,57558.0,57557.0,0.81219231]
[1617534812297,4.22374311,57558.0,57557.0,0.81219231]
[1617534812996,4.22374311,57558.0,57557.0,0.36548654]
[1617534813696,4.22374311,57558.0,57557.0,0.42660034]
[1617534814097,4.22374311,57558.0,57557.0,0.36548654]
[1617534818401,4.22374311,57558.0,57557.0,0.42660056]
[1617534819002,4.22374311,57558.0,57557.0,1.42660056]
[1617534819707,4.22374311,57558.0,57557.0,1.87338617]
[1617534830122,4.22374311,57558.0,57557.0,2.02550617]
[1617534830123,0.40747311,57558.0,57557.0,2.02550617]
[1617534830323,0.30021656,57558.0,57557.0,6.80720617]
[1617534830523,0.30021656,57558.0,57557.0,6.91446272]
[1617534830724,0.00195448,57559.0,57557.0,7.42285087]
[1617534830925,0.27723015,57560.0,57557.0,7.42285087]
[1617534831124,0.0021086,57560.0,57559.0,1.5]
[1617534831524,0.00210904,57561.0,57559.0,3.88283213]
[1617534831723,0.00210904,57561.0,57559.0,2.38283213]
[1617534831924,0.10725655,57570.0,57559.0,1.38283213]
[1617534831925,2.7885,57560.0,57559.0,1.38283213]
[1617534832123,2.95298,57560.0,57559.0,1.38283213]
[1617534832324,2.95298,57560.0,57559.0,1.32172805]
[1617534832624,3.06023655,57560.0,57559.0,2.32172805]
[1617534832824,3.06023655,57560.0,57559.0,2.38283585]
[1617534836327,2.89575655,57560.0,57559.0,2.38283585]
[1617534837027,0.10725655,57560.0,57559.0,2.38283585]
[1617534837229,0.10725655,57560.0,57559.0,2.49760585]
[1617534837428,0.36164172,57566.0,57559.0,2.49760585]
[1617534837629,0.00210945,57560.0,57559.0,2.49760585]
[1617534837828,0.00210945,57560.0,57559.0,1.49760585]
[1617534838229,0.00210945,57560.0,57559.0,2.49760585]
[1617534839233,0.00210993,57562.0,57559.0,2.49760585]
[1617534839632,0.10725655,57564.0,57563.0,1.0]
[1617534840033,0.10725655,57564.0,57563.0,1.38283896]
[1617534840434,0.10725655,57564.0,57563.0,0.8133752]
[1617534840631,0.10725655,57564.0,57563.0,0.92063175]
[1617534840832,0.10725655,57564.0,57563.0,0.98173945]
[1617534840833,0.4688411,57564.0,57563.0,0.98173945]
[1617534841234,4.1897411,57564.0,57563.0,0.98173945]
[1617534841833,4.0725862,57564.0,57563.0,0.98173945]
[1617534842133,3.82815655,57564.0,57563.0,0.98173945]
[1617534844235,3.82815655,57564.0,57563.0,1.98173945]
[1617534845739,0.10725655,57564.0,57563.0,2.49008481]
[1617534847340,0.36171134,57567.0,57563.0,2.49008481]
[1617534847743,0.36161511,57568.0,57566.0,1.81332895]
[1617534847940,0.36161511,57568.0,57566.0,5.11992895]
[1617534848139,0.36161511,57568.0,57566.0,4.11992895]
[1617534848339,2.6536,57593.0,57567.0,1.38267282]
[1617534848340,0.36193935,57574.0,57567.0,1.38267282]
[1617534848541,0.36193935,57574.0,57567.0,2.38267282]
[1617534848740,0.36193935,57574.0,57573.0,2.0451552]
[1617534849139,0.36193935,57574.0,57573.0,2.10625208]
[1617534849541,0.36197248,57575.0,57573.0,2.10625208]
[1617534849941,0.36197248,57575.0,57573.0,1.10625208]
[1617534850340,0.36197248,57575.0,57574.0,1.87434384]
[1617534850742,0.36197433,57576.0,57574.0,1.87434384]
[1617534851242,0.36109302,57580.0,57575.0,0.42620103]
[1617534851444,0.36109302,57580.0,57575.0,1.42620103]
[1617534851643,0.24438751,57582.0,57575.0,1.44624017]
[1617534851644,0.0021065,57576.0,57575.0,1.44624017]
[1617534851844,0.0021065,57576.0,57575.0,0.44624017]
[1617534852043,0.36112919,57581.0,57575.0,1.4261977]
[1617534852444,0.36112919,57581.0,57574.0,0.44623763]
[1617534852445,0.36112135,57580.0,57578.0,0.36510945]
[1617534852643,0.36112135,57580.0,57579.0,0.10725655]
[1617534853044,0.60549726,57580.0,57579.0,1.10725655]
[1617534853444,0.36112135,57580.0,57579.0,1.16835072]
[1617534853845,0.6054972,57580.0,57579.0,1.16835072]
[1617534854445,0.36112135,57580.0,57579.0,1.16835072]
[1617534855248,0.36112135,57580.0,57579.0,1.10725655]
[1617534858151,0.36112135,57580.0,57579.0,1.26992655]
[1617534860753,0.10725655,57583.0,57579.0,1.26992655]
[1617534860754,0.46813772,57583.0,57579.0,1.63502518]
[1617534861155,0.46813772,57583.0,57581.0,1.0]
[1617534861354,0.46813772,57583.0,57582.0,1.0]
[1617534861655,0.46813772,57583.0,57582.0,1.06109396]
[1617534862057,0.46813772,57583.0,57582.0,1.0]
[1617534862058,0.40769757,57583.0,57582.0,1.0]
[1617534863058,0.10725655,57583.0,57582.0,1.0]
[1617534863857,0.40747378,57583.0,57582.0,1.0]
[1617534864258,0.10725655,57583.0,57582.0,1.0]
[1617534865258,0.10725655,57583.0,57581.0,0.36461418]
[1617534865458,0.10725655,57583.0,57582.0,1.0]
[1617534868764,0.10935847,57583.0,57582.0,4.87491324]
[1617534869063,0.10725655,57583.0,57582.0,5.3205227]
[1617534869264,0.10725655,57583.0,57582.0,4.5205227]
[1617534869464,0.10725655,57583.0,57582.0,5.61215255]
[1617534869665,0.00210339,57588.0,57582.0,5.61215255]
[1617534869865,0.00210396,57589.0,57582.0,5.61215255]
[1617534870065,0.00210396,57589.0,57587.0,1.0]
[1617534870265,0.0021034,57590.0,57588.0,0.3645748]
[1617534870464,0.0021034,57590.0,57588.0,1.3645748]
[1617534870664,0.0021034,57590.0,57588.0,0.3645748]
[1617534870864,0.0021034,57590.0,57589.0,0.47182889]
[1617534871066,0.0021034,57590.0,57589.0,1.47182889]
[1617534871266,0.0021034,57590.0,57589.0,1.5329126]
[1617534871766,0.00210039,57591.0,57589.0,1.5329126]
[1617534872168,0.00210039,57591.0,57589.0,0.5329126]
[1617534872366,0.00210039,57591.0,57590.0,0.42564585]
[1617534872568,0.00210039,57591.0,57590.0,1.55731585]
[1617534873268,0.10725655,57593.0,57590.0,1.13167]
[1617534873669,0.10725655,57593.0,57592.0,1.36401374]
[1617534874272,0.10725655,57593.0,57592.0,1.42509305]
[1617534876373,0.10725655,57593.0,57592.0,1.55561305]
[1617534877575,0.10725655,57593.0,57592.0,2.00049314]
[1617534880080,0.00209539,57603.0,57592.0,2.00049314]
[1617534880281,0.00209539,57603.0,57596.0,2.5776]
[1617534880481,0.00209539,57603.0,57602.0,1.0]
[1617534880882,0.00209539,57603.0,57602.0,1.10725655]
[1617534880883,0.10935194,57603.0,57602.0,1.10725655]
[1617534882285,0.10725655,57603.0,57602.0,1.10725655]
[1617534882683,0.10934919,57603.0,57602.0,1.10725655]
[1617534883085,0.10725655,57603.0,57602.0,1.10725655]
[1617534886388,0.10725655,57603.0,57602.0,0.10725655]
[1617534886587,0.10725655,57603.0,57602.0,1.10725655]
[1617534888191,0.00209209,57605.0,57602.0,1.30725655]
[1617534888392,0.00209369,57608.0,57604.0,3.00667]
[1617534888591,0.00209369,57608.0,57604.0,5.70667]
[1617534888794,0.00209428,57609.0,57604.0,4.70667]
[1617534888991,0.29928305,57613.0,57609.0,0.19790572]
[1617534889191,0.29928305,57613.0,57610.0,1.0]
[1617534889391,0.29928305,57613.0,57610.0,0.19790572]
[1617534889591,0.29928305,57613.0,57612.0,1.0]
[1617534890194,0.2993335,57614.0,57612.0,1.0]
[1617534890492,0.29926452,57613.0,57612.0,1.0]
[1617534890692,0.29926452,57613.0,57610.0,0.19790572]
[1617534890893,0.29926452,57613.0,57612.0,1.0]
[1617534893095,0.29931167,57614.0,57612.0,1.0]
[1617534893294,2.6018,57613.0,57612.0,1.0]
[1617534893494,2.6018,57613.0,57609.0,0.19790572]
[1617534893795,2.6018,57613.0,57612.0,1.0]
[1617534894395,2.90111599,57613.0,57612.0,1.0]
[1617534895496,2.90111599,57613.0,57609.0,0.19790572]
[1617534895897,2.90111599,57613.0,57612.0,1.0]
[1617534896299,2.6018,57613.0,57612.0,1.0]
[1617534897299,2.90151703,57613.0,57612.0,1.0]
[1617534898501,2.6018,57613.0,57612.0,1.0]
[1617534903812,2.6018,57613.0,57610.0,0.35245572]
[1617534904214,2.90099666,57613.0,57612.0,1.0]
[1617534904813,2.90099666,57613.0,57610.0,0.19790572]
[1617534905015,0.10725655,57611.0,57610.0,0.19790572]
[1617534905816,0.10725655,57611.0,57610.0,1.19790572]
[1617534907417,0.10725655,57611.0,57610.0,0.19790572]
[1617534907617,0.10725655,57611.0,57608.0,0.10725655]
[1617534907618,0.10725655,57611.0,57609.0,0.19790572]
[1617534908017,0.10725655,57611.0,57610.0,1.0]
[1617534908418,0.10725655,57611.0,57609.0,0.19790572]
[1617534908618,0.10725655,57611.0,57609.0,1.19790572]
[1617534911220,0.10725655,57611.0,57610.0,1.0]
[1617534912423,0.10725655,57611.0,57609.0,1.19790572]
[1617534912621,0.22006655,57611.0,57609.0,1.19790572]
[1617534914325,0.10725655,57611.0,57609.0,1.19790572]
[1617534915025,0.10725655,57611.0,57609.0,0.19790572]
[1617534915427,0.10725655,57611.0,57610.0,1.0]
[1617534917629,0.10725655,57611.0,57606.0,0.36421516]
[1617534917829,3.90575655,57611.0,57606.0,0.36421516]
[1617534918330,3.90575655,57611.0,57605.0,0.36422203]
[1617534918730,0.2984207,57610.0,57603.0,0.36422833]
[1617534919129,0.10725655,57604.0,57600.0,1.0]
[1617534919531,0.10725655,57604.0,57603.0,0.36423485]
[1617534921936,0.10725655,57604.0,57599.0,0.36425505]
[1617534922337,0.46593883,57604.0,57602.0,0.36509177]
[1617534922936,0.46593883,57604.0,57601.0,0.3650914]
[1617534922937,0.65738358,57603.0,57601.0,0.3650914]
[1617534923338,0.35856381,57603.0,57602.0,0.36520629]
[1617534923739,0.90178197,57603.0,57602.0,0.36520629]
[1617534925238,0.90178197,57603.0,57600.0,0.3652131]
[1617534925739,0.65757928,57601.0,57596.0,0.44637157]
[1617534926138,0.29891355,57599.0,57596.0,0.44637157]
[1617534926540,0.29899184,57600.0,57598.0,1.81158611]
[1617534926940,0.10725655,57604.0,57598.0,1.81158611]
[1617534926941,0.29906183,57601.0,57600.0,1.0]
[1617534927340,0.29906183,57601.0,57600.0,0.42627927]
[1617534928742,0.29908543,57602.0,57600.0,0.87264795]
[1617534929141,0.29908543,57602.0,57601.0,0.36520948]
[1617534932749,0.65771048,57602.0,57601.0,0.36520948]
[1617534934153,0.90200648,57602.0,57601.0,0.42628348]
[1617534934549,0.65771048,57602.0,57601.0,0.36520948]
[1617534937450,0.51738505,57602.0,57601.0,0.36520948]
[1617534938451,0.95604517,57602.0,57601.0,0.36520948]
[1617534939759,0.95604517,57602.0,57599.0,0.06107396]
[1617534939760,0.95604517,57602.0,57600.0,0.36568357]
[1617534940153,0.15876,57602.0,57601.0,0.36568184]
[1617534940552,1.4994698,57602.0,57601.0,0.36568184]
[1617534940752,1.4994698,57602.0,57599.0,0.06107396]
[1617534940953,0.65787069,57600.0,57599.0,0.06107396]
[1617534941352,0.65787069,57600.0,57599.0,0.42675493]
[1617534943155,0.65787069,57600.0,57599.0,0.87368977]
[1617534945159,0.65787069,57600.0,57599.0,0.98094632]
[1617534945361,0.29904119,57600.0,57599.0,0.98094632]
[1617534945760,3.24104119,57600.0,57599.0,0.98094632]
[1617534945962,3.40292119,57600.0,57599.0,0.98094632]
[1617534946862,3.76179829,57600.0,57599.0,0.98094632]
[1617534947064,3.40292119,57600.0,57599.0,0.98094632]
[1617534952270,3.40292119,57600.0,57599.0,0.87368977]
[1617534953071,3.40292119,57600.0,57599.0,0.96529978]
[1617534955273,3.10388,57600.0,57599.0,0.96529978]
[1617534955474,3.76159674,57600.0,57599.0,0.96529978]
[1617534956075,3.76159674,57600.0,57599.0,0.59961881]
[1617534956276,3.40285121,57600.0,57599.0,0.96515324]
[1617534958379,3.76153189,57600.0,57599.0,0.42660839]
[1617534963984,0.81953189,57600.0,57599.0,0.36553443]
[1617534964788,1.0638585,57600.0,57599.0,0.36553443]
[1617534964987,4.33065332,57600.0,57595.0,0.36558299]
[1617534965289,0.10725655,57596.0,57594.0,0.36567134]
[1617534965687,1.33851796,57595.0,57594.0,0.36567134]
[1617534968289,1.33851796,57595.0,57593.0,0.36568471]
[1617534968891,0.65669439,57594.0,57593.0,0.36568471]
[1617534970593,1.09493554,57594.0,57593.0,0.36568471]
[1617534971193,1.09493554,57594.0,57580.0,0.06108315]
[1617534971194,0.65669439,57594.0,57590.0,0.36521009]
[1617534971594,0.65635672,57591.0,57590.0,0.36521009]
[1617534978002,4.30785672,57591.0,57590.0,0.36521009]
[1617534979007,4.55219707,57591.0,57590.0,0.36521009]
[1617534983612,4.55219707,57591.0,57589.0,0.36527895]
[1617534984013,4.00950372,57591.0,57590.0,0.36527424]
[1617534984413,3.6515,57591.0,57590.0,0.42635969]
[1617534984914,4.30819021,57591.0,57589.0,0.365278]
[1617534985313,0.90106452,57590.0,57589.0,0.365278]
[1617534985514,1.00832107,57590.0,57589.0,0.365278]
[1617534990919,1.00832107,57590.0,57588.0,0.36527842]
[1617534991521,0.90100737,57589.0,57588.0,0.36527842]
[1617534991922,0.2984931,57589.0,57585.0,0.50753507]
[1617534992224,0.01004702,57587.0,57585.0,0.50753507]
[1617534992422,0.12227702,57587.0,57585.0,0.50753507]
[1617534992823,0.12227702,57587.0,57586.0,0.36527654]
[1617534993223,0.12227702,57587.0,57586.0,3.44477654]
[1617534993424,0.01004702,57587.0,57586.0,4.44477654]
[1617534993624,0.29852595,57588.0,57586.0,5.15117853]
[1617534993625,0.01004852,57588.0,57586.0,5.15117853]
[1617534994025,0.01004852,57588.0,57587.0,1.96442179]
[1617534994424,0.01004852,57588.0,57587.0,2.01592179]
[1617534994623,0.01004852,57588.0,57587.0,1.96442179]
[1617534995625,3.34424852,57588.0,57587.0,1.96442179]
[1617534996026,3.34424852,57588.0,57587.0,1.87279713]
[1617534996927,3.34424852,57588.0,57587.0,0.87279713]
[1617534997127,3.3342,57588.0,57587.0,0.87279713]
[1617534997729,3.34424801,57588.0,57587.0,0.42635442]
[1617534998129,3.34424801,57588.0,57587.0,0.87279722]
[1617535000231,3.3342,57588.0,57587.0,0.87279722]
[1617535001832,3.3342,57588.0,57587.0,1.87279722]
[1617535002839,3.3342,57588.0,57587.0,0.87279722]
[1617535003735,3.34424915,57588.0,57587.0,0.42635442]
[1617535004038,3.63284914,57588.0,57587.0,0.42635442]
[1617535004438,3.63284914,57588.0,57587.0,0.87293457]
[1617535006938,3.63284914,57588.0,57587.0,0.50766326]
[1617535007239,3.63284914,57588.0,57587.0,0.87318258]
[1617535007439,3.63284914,57588.0,57587.0,1.87318258]
[1617535009039,3.34425279,57588.0,57587.0,1.87318258]
[1617535012645,0.01005279,57588.0,57587.0,3.53447258]
[1617535012845,0.29869738,57589.0,57587.0,6.06507258]
[1617535013045,0.00508366,57596.0,57587.0,12.66427428]
[1617535013245,0.00508366,57596.0,57587.0,9.33367428]
[1617535013446,0.00508984,57606.0,57588.0,8.1831527]
[1617535013646,0.00508984,57606.0,57605.0,0.10725655]
[1617535013848,0.35957737,57616.0,57605.0,0.45067655]
[1617535014046,0.35957737,57616.0,57605.0,1.45067655]
[1617535014247,0.10725655,57618.0,57605.0,3.33110129]
[1617535014448,0.10725655,57618.0,57615.0,1.0]
[1617535014647,0.10725655,57618.0,57617.0,1.81187365]
[1617535014846,0.10725655,57618.0,57617.0,1.96010365]
[1617535015448,0.10725655,57618.0,57617.0,1.14823]
[1617535015649,0.10725655,57618.0,57617.0,1.25548655]
[1617535015850,0.46819645,57618.0,57617.0,2.57803166]
[1617535016251,0.10725655,57618.0,57617.0,1.62172981]
[1617535022658,0.10725655,57618.0,57617.0,2.06644691]
[1617535026764,0.10725655,57618.0,57617.0,1.62172981]
[1617535035982,0.35854294,57640.0,57639.0,3.5007]
[1617535036180,0.35854294,57640.0,57639.0,3.6318]
[1617535036381,0.35870876,57642.0,57639.0,3.6318]
[1617535036581,0.35870876,57642.0,57639.0,0.1311]
[1617535036983,0.35888779,57645.0,57641.0,3.5007]
[1617535037182,0.35888779,57645.0,57642.0,1.0]
[1617535037384,0.6828084,57649.0,57642.0,1.0]
[1617535037385,0.35900124,57646.0,57642.0,1.0]
[1617535037582,0.35900124,57646.0,57641.0,3.5007]
[1617535037783,0.10725655,57642.0,57641.0,3.5007]
[1617535038884,0.10725655,57642.0,57641.0,4.5007]
[1617535053799,0.10725655,57642.0,57641.0,3.5007]
[1617535054200,0.10725655,57642.0,57641.0,4.5007]
[1617535056701,0.10725655,57642.0,57641.0,4.7007]
[1617535057203,0.10725655,57642.0,57641.0,4.5007]
[1617535063012,0.5,57650.0,57641.0,4.5007]
[1617535063013,0.5,57650.0,57641.0,3.7007]
[1617535063212,0.5,57650.0,57641.0,0.2]
[1617535063413,0.5,57650.0,57641.0,1.2]
[1617535063812,0.5,57650.0,57649.0,1.30725655]
[1617535065017,0.5,57650.0,57649.0,1.67126436]
[1617535067222,0.5,57650.0,57649.0,1.47126436]
[1617535068024,0.5,57650.0,57649.0,1.10725655]
[1617535068927,0.5,57650.0,57649.0,1.47124947]
[1617535071430,0.5,57650.0,57649.0,1.10725655]
[1617535071625,0.5,57650.0,57649.0,0.10725655]
[1617535071825,0.5,57650.0,57649.0,1.10725655]
[1617535072828,0.5,57650.0,57649.0,1.47124166]
[1617535074128,0.5,57650.0,57649.0,1.10725655]
[1617535076030,0.5,57650.0,57649.0,1.47117884]
[1617535076229,0.5,57650.0,57649.0,0.47117884]
[1617535076630,0.5,57650.0,57649.0,1.47117884]
[1617535076830,0.5,57650.0,57649.0,0.36392229]
[1617535077031,0.5,57650.0,57647.0,0.36393215]
[1617535077231,0.5,57650.0,57647.0,1.36393215]
[1617535077431,0.5,57650.0,57647.0,1.0]
[1617535077630,0.5,57650.0,57648.0,1.0]
[1617535078030,0.10725655,57649.0,57648.0,1.0]
[1617535080932,0.10725655,57649.0,57646.0,0.36395471]
[1617535081333,0.10725655,57649.0,57648.0,1.0]
[1617535082136,0.10725655,57649.0,57648.0,1.06102638]
[1617535083839,0.10725655,57649.0,57648.0,4.62212638]
[1617535084241,0.10725655,57649.0,57648.0,4.98607596]
[1617535084839,0.10725655,57649.0,57648.0,4.62212638]
[1617535085642,0.10725655,57649.0,57648.0,4.98606842]
[1617535086241,0.10725655,57649.0,57648.0,3.98606842]
[1617535086644,0.10725655,57649.0,57648.0,4.98606842]
[1617535087041,0.10725655,57649.0,57648.0,3.98606842]
[1617535087241,0.10725655,57649.0,57648.0,3.62212638]
[1617535087441,0.10725655,57649.0,57648.0,4.62212638]
[1617535088644,0.10725655,57649.0,57648.0,4.98636391]
[1617535090847,0.40954516,57649.0,57648.0,4.98636391]
[1617535091046,0.40954516,57649.0,57648.0,4.15030391]
[1617535091246,0.40954516,57649.0,57648.0,5.59631122]
[1617535093251,0.40954516,57649.0,57648.0,2.03521122]
[1617535093451,0.40954516,57649.0,57648.0,1.03521122]
[1617535093651,0.40954516,57649.0,57648.0,2.03521122]
[1617535096756,0.40954516,57649.0,57648.0,1.58920391]
[1617535098063,0.40954516,57649.0,57648.0,2.03519603]
[1617535102068,0.77297434,57649.0,57648.0,2.03519603]
[1617535104366,0.77297434,57649.0,57648.0,5.42639603]
[1617535105068,0.77297434,57649.0,57648.0,5.51793159]
[1617535109172,0.77297434,57649.0,57648.0,4.51793159]
[1617535109370,0.77297434,57649.0,57648.0,5.51793159]
[1617535110471,0.77297434,57649.0,57648.0,6.02561149]
[1617535110871,0.77297434,57649.0,57648.0,5.51793159]
[1617535111872,0.77297434,57649.0,57648.0,6.02560578]
[1617535111873,0.40954516,57649.0,57648.0,6.02560578]
[1617535112878,0.77480612,57649.0,57648.0,6.02560578]
[1617535118487,0.77480612,57649.0,57648.0,1.63440578]
[1617535118696,3.51600612,57649.0,57648.0,1.47046578]
[1617535118898,3.51600612,57649.0,57648.0,0.87125603]
[1617535119187,0.77480612,57649.0,57648.0,0.87125603]
[1617535119389,2.09344597,57649.0,57648.0,0.36423753]
[1617535119588,2.09344597,57649.0,57648.0,3.42943753]
[1617535119791,1.22063608,57649.0,57648.0,3.9376259]
[1617535119987,1.22063608,57649.0,57648.0,0.8724259]
[1617535120187,1.46475285,57649.0,57648.0,0.96396969]
[1617535120588,1.46475285,57649.0,57648.0,0.81139577]
[1617535120989,1.46475285,57649.0,57648.0,0.36423753]
[1617535121903,1.97048929,57649.0,57648.0,0.36423753]
[1617535122895,1.46475285,57649.0,57648.0,0.36423753]
[1617535123092,1.46475285,57649.0,57648.0,3.19273753]
[1617535123293,1.46475285,57649.0,57648.0,4.63975118]
[1617535123492,1.46475285,57649.0,57648.0,3.63975118]
[1617535123792,1.46475285,57649.0,57648.0,3.79232063]
[1617535124292,1.46475285,57649.0,57648.0,4.79232063]
[1617535125695,1.01892289,57649.0,57648.0,4.79232063]
[1617535130903,1.46330148,57649.0,57648.0,4.79232063]
[1617535131702,1.46330148,57649.0,57648.0,3.79232063]
[1617535131902,1.01892289,57649.0,57648.0,3.79232063]
[1617535132203,1.46323787,57649.0,57648.0,3.79232063]
[1617535133407,1.01892289,57649.0,57648.0,3.79232063]
[1617535133804,1.46326402,57649.0,57648.0,3.79232063]
[1617535137508,1.46326402,57649.0,57648.0,4.79232063]
[1617535138511,1.01892289,57649.0,57648.0,4.79232063]
[1617535139209,1.46335483,57649.0,57648.0,4.79232063]
[1617535139911,1.46335483,57649.0,57648.0,1.96382063]
[1617535140311,4.34575483,57649.0,57648.0,1.96382063]
[1617535140512,4.34575483,57649.0,57648.0,1.87227896]
[1617535140911,4.34575483,57649.0,57648.0,1.42526531]
[1617535140912,4.71193821,57649.0,57648.0,1.42526531]
[1617535141113,1.82953821,57649.0,57648.0,1.42526531]
[1617535141716,1.46335483,57649.0,57648.0,4.64746531]
[1617535142115,1.46335483,57649.0,57648.0,5.1860301]
[1617535143115,1.01892289,57649.0,57648.0,5.1860301]
[1617535144818,1.01892289,57649.0,57648.0,4.1860301]
[1617535145619,1.4635226,57649.0,57648.0,4.1860301]
[1617535146322,1.01892289,57649.0,57648.0,4.1860301]
[1617535147621,1.46361826,57649.0,57648.0,4.1860301]
[1617535147821,1.46361826,57649.0,57648.0,0.9638301]
[1617535148622,1.82981077,57649.0,57648.0,0.36423753]
[1617535150424,1.82981077,57649.0,57648.0,0.81126977]
[1617535150926,1.82981077,57649.0,57648.0,0.36423753]
[1617535151928,2.3345336,57649.0,57648.0,0.36423753]
[1617535152729,2.3345336,57649.0,57648.0,0.42527387]
[1617535153129,2.3345336,57649.0,57647.0,0.36578607]
[1617535153630,2.3345336,57649.0,57646.0,0.36579164]
[1617535153631,1.85860048,57648.0,57646.0,0.36579164]
[1617535153829,2.22482666,57648.0,57646.0,0.36579164]
[1617535154230,1.10882543,57647.0,57644.0,0.36537277]
[1617535154629,1.10886684,57645.0,57644.0,0.36537277]
[1617535154829,1.27371684,57645.0,57644.0,0.36537277]
[1617535155530,1.51786973,57645.0,57644.0,0.36537277]
[1617535157830,1.35301973,57645.0,57644.0,0.36537277]
[1617535158532,1.10886684,57645.0,57644.0,0.36537277]
[1617535159031,0.66534026,57645.0,57644.0,0.36537277]
[1617535159833,1.10958591,57645.0,57644.0,0.36537277]
[1617535162835,0.66534026,57645.0,57644.0,0.36537277]
[1617535163136,1.11063952,57645.0,57644.0,0.36537277]
[1617535167545,1.11063952,57645.0,57644.0,0.06103731]
[1617535167947,1.11063952,57645.0,57644.0,0.36533992]
[1617535168347,1.11063952,57645.0,57644.0,0.42637567]
[1617535168851,1.11063952,57645.0,57644.0,0.36533992]
[1617535169247,1.11063952,57645.0,57644.0,0.42637479]
[1617535169649,1.11063952,57645.0,57644.0,0.36533992]
[1617535170149,0.66534026,57645.0,57644.0,0.42637272]
[1617535170550,1.11176659,57645.0,57644.0,0.42637272]
[1617535172453,0.66534026,57645.0,57644.0,0.42637272]
[1617535172851,0.90946581,57645.0,57644.0,0.87302585]
[1617535173251,0.66534026,57645.0,57644.0,0.87302585]
[1617535173852,0.90946469,57645.0,57644.0,1.87302585]
[1617535174051,0.66534026,57645.0,57644.0,1.87302585]
[1617535175054,0.66534026,57645.0,57644.0,1.9802824]
[1617535177256,0.66534026,57645.0,57644.0,5.3944824]
[1617535178055,0.66534026,57645.0,57644.0,4.4860274]
[1617535178255,0.66534026,57645.0,57644.0,5.4860274]
[1617535180158,0.66534026,57645.0,57644.0,4.4860274]
[1617535180357,0.66534026,57645.0,57644.0,5.4860274]
[1617535180757,0.30243655,57645.0,57644.0,5.4860274]
[1617535184359,0.66794995,57645.0,57644.0,5.4860274]